lending/lending_fUSD_20250920
["ID","MTS","AMOUNT","RATE_DAILY","PERIOD"]
[386510172,1758327042714,-791.2,0.00019237,2]
[386510174,1758327042723,-536.26,0.00019237,2]
[386510176,1758327042733,-400.0,0.00019237,2]
[386510178,1758327042743,-400.0,0.00019237,2]
[386510180,1758327042753,-1553.23,0.00019237,2]
[386510182,1758327042763,-400.0,0.00019237,2]
[386510184,1758327042773,-506.34,0.00019237,2]
[386510186,1758327042783,-774.72,0.00019237,2]
[386510188,1758327042792,-408.16,0.00019237,2]
[386510190,1758327042802,-444.12,0.00019237,2]
[386510192,1758327042811,-400.0,0.00019237,2]
[386510194,1758327042821,-400.0,0.00019237,2]
[386510196,1758327042831,-2081.94,0.00019237,2]
[386510198,1758327042841,-525.34,0.00019237,2]
[386510200,1758327042850,-400.0,0.00019237,2]
[386510202,1758327042860,-191581.2247,0.00019238,2]
[386510204,1758327042870,-383.01958374,0.00019254,2]
[386510206,1758327042879,-500.71240189,0.00019273,2]
[386510208,1758327042888,-502.88935764,0.00019273,2]
[386510210,1758327042898,-172.00972811,0.00019273,2]
[386510212,1758327042908,-500.0,0.00019273,2]
[386510214,1758327042918,-500.0,0.00019273,2]
[386510216,1758327042927,-500.0,0.00019273,2]
[386510218,1758327042937,-500.0,0.00019273,2]
[386510220,1758327042947,-387.5624679,0.00019273,2]
[386510222,1758327042957,-500.0,0.00019273,2]
[386510224,1758327042967,-500.0,0.00019273,2]
[386510226,1758327042976,-500.0,0.00019273,2]
[386510228,1758327042986,-500.46899546,0.00019273,2]
[386510230,1758327042995,-500.0,0.00019273,2]
[386510232,1758327043005,-169.91,0.00019313,2]
[386510234,1758327043014,-383.01958374,0.00019335,2]
[386510236,1758327043024,-1186.5753389,0.00019336,5]
[386510238,1758327043033,-152.159125,0.00019337,2]
[386510240,1758327043043,-400.0,0.00019337,2]
[386510241,1758327043052,-400.0,0.00019337,2]
[386510243,1758327043061,-400.0,0.00019337,2]
[386510246,1758327043071,-400.0,0.00019337,2]
[386510247,1758327043080,-400.0,0.00019337,2]
[386510249,1758327043089,-400.0,0.00019337,2]
[386510251,1758327043098,-400.0,0.00019337,2]
[386510253,1758327043108,-400.0,0.00019337,2]
[386510256,1758327043118,-400.0,0.00019337,2]
[386510257,1758327043128,-284.1692092,0.00019337,2]
[386510259,1758327043139,-400.0,0.00019337,2]
[386510262,1758327043149,-439.94,0.00019337,2]
[386510263,1758327043158,-400.0,0.00019337,2]
[386510266,1758327043168,-461.54,0.00019337,2]
[386510268,1758327043177,-400.0,0.00019337,2]
[386510270,1758327043188,-400.0,0.00019337,2]
[386510271,1758327043198,-400.0,0.00019337,2]
[386510273,1758327043207,-200.0,0.00019337,2]
[386510275,1758327043217,-366.93167337,0.00019337,2]
[386510278,1758327043227,-400.0,0.00019337,2]
[386510280,1758327043237,-400.0,0.00019337,2]
[386510282,1758327043246,-400.0,0.00019337,2]
[386510284,1758327043256,-400.0,0.00019337,2]
[386510286,1758327043267,-400.0,0.00019337,2]
[386510288,1758327043276,-400.0,0.00019337,2]
[386510291,1758327043286,-400.0,0.00019337,2]
[386510294,1758327043296,-582.82,0.00019337,2]
[386510297,1758327043306,-469.16,0.00019337,2]
[386510299,1758327043316,-400.0,0.00019337,2]
[386510301,1758327043325,-473.06,0.00019337,2]
[386510303,1758327043335,-501.23,0.00019337,2]
[386510305,1758327043345,-699.29,0.00019337,2]
[386510307,1758327043355,-400.0,0.00019337,2]
[386510309,1758327043364,-400.0,0.00019337,2]
[386510311,1758327043374,-421.41,0.00019337,2]
[386510313,1758327043384,-454.89,0.00019337,2]
[386510315,1758327043394,-400.0,0.00019337,2]
[386510317,1758327043403,-400.0,0.00019337,2]
[386510319,1758327043413,-400.0,0.00019337,2]
[386510321,1758327043423,-422.8,0.00019337,2]
[386510323,1758327043432,-404.71,0.00019337,2]
[386510325,1758327043441,-400.0,0.00019337,2]
[386510327,1758327043451,-439.89,0.00019337,2]
[386510329,1758327043460,-400.0,0.00019337,2]
[386510330,1758327043470,-446.39,0.00019337,2]
[386510331,1758327043480,-400.0,0.00019337,2]
[386510332,1758327043489,-405.34,0.00019337,2]
[386510333,1758327043499,-456.35,0.00019337,2]
[386510334,1758327043509,-400.0,0.00019337,2]
[386510336,1758327043518,-400.0,0.00019337,2]
[386510338,1758327043527,-400.0,0.00019337,2]
[386510339,1758327043537,-430.4,0.00019337,2]
[386510340,1758327043547,-498.03,0.00019337,2]
[386510341,1758327043557,-400.0,0.00019337,2]
[386510342,1758327043566,-1151.54,0.00019337,2]
[386510343,1758327043576,-564.75,0.00019337,2]
[386510344,1758327043586,-400.0,0.00019337,2]
[386510345,1758327043596,-400.0,0.00019337,2]
[386510346,1758327043606,-400.0,0.00019337,2]
[386510347,1758327043615,-400.0,0.00019337,2]
[386510348,1758327043625,-400.0,0.00019337,2]
[386510349,1758327043635,-457.17,0.00019337,2]
[386510350,1758327043644,-563.48,0.00019337,2]
[386510351,1758327043654,-400.0,0.00019337,2]
[386510352,1758327043664,-400.01,0.00019337,2]
[386510353,1758327043674,-400.0,0.00019337,2]
[386510354,1758327043683,-403.03,0.00019337,2]
[386510356,1758327043693,-400.0,0.00019337,2]
[386510358,1758327043705,-702.97,0.00019337,2]
[386510360,1758327043715,-400.0,0.00019337,2]
[386510363,1758327043724,-400.0,0.00019337,2]
[386510365,1758327043734,-540.27,0.00019337,2]
[386510367,1758327043744,-400.0,0.00019337,2]
[386510369,1758327043753,-407.08,0.00019337,2]
[386510371,1758327043763,-400.0,0.00019337,2]
[386510373,1758327043772,-583.12,0.00019337,2]
[386510375,1758327043782,-408.11,0.00019337,2]
[386510377,1758327043791,-400.0,0.00019337,2]
[386510378,1758327043801,-610.8,0.00019337,2]
[386510379,1758327043810,-400.0,0.00019337,2]
[386510380,1758327043820,-400.0,0.00019337,2]
[386510381,1758327043830,-533.08,0.00019337,2]
[386510382,1758327043839,-400.0,0.00019337,2]
[386510383,1758327043849,-483.54,0.00019337,2]
[386510384,1758327043859,-400.0,0.00019337,2]
[386510385,1758327043873,-533.13,0.00019337,2]
[386510386,1758327043883,-451.21,0.00019337,2]
[386510387,1758327043894,-400.0,0.00019337,2]
[386510388,1758327043905,-538.24,0.00019337,2]
[386510389,1758327043914,-159.65867219,0.00019337,2]
[386510390,1758327043924,-715.35,0.00019337,2]
[386510391,1758327043934,-400.0,0.00019337,2]
[386510392,1758327043943,-400.0,0.00019337,2]
[386510393,1758327043954,-400.0,0.00019337,2]
[386510394,1758327043963,-657.25,0.00019337,2]
[386510395,1758327043972,-401.33,0.00019337,2]
[386510396,1758327043982,-483.66,0.00019337,2]
[386510397,1758327043992,-400.0,0.00019337,2]
[386510398,1758327044002,-466.68,0.00019337,2]
[386510399,1758327044011,-400.0,0.00019337,2]
[386510400,1758327044021,-400.0,0.00019337,2]
[386510402,1758327044030,-452.72,0.00019337,2]
[386510403,1758327044040,-424.61,0.00019337,2]
[386510404,1758327044050,-400.0,0.00019337,2]
[386510405,1758327044060,-839.81,0.00019337,2]
[386510406,1758327044070,-486.1,0.00019337,2]
[386510407,1758327044080,-400.0,0.00019337,2]
[386510408,1758327044089,-952.36,0.00019337,2]
[386510409,1758327044099,-400.0,0.00019337,2]
[386510410,1758327044109,-400.0,0.00019337,2]
[386510411,1758327044119,-426.0,0.00019337,2]
[386510412,1758327044129,-400.0,0.00019337,2]
[386510413,1758327044145,-567.22,0.00019337,2]
[386510414,1758327044155,-519.32763257,0.00019337,2]
[386510415,1758327044164,-400.0,0.00019337,2]
[386510416,1758327044174,-433.86,0.00019337,2]
[386510417,1758327044184,-400.0,0.00019337,2]
[386510418,1758327044193,-400.0,0.00019337,2]
[386510419,1758327044203,-400.0,0.00019337,2]
[386510420,1758327044212,-400.0,0.00019337,2]
[386510421,1758327044222,-400.0,0.00019337,2]
[386510422,1758327044232,-400.0,0.00019337,2]
[386510423,1758327044242,-402.12,0.00019337,2]
[386510424,1758327044252,-400.0,0.00019337,2]
[386510425,1758327044262,-400.0,0.00019337,2]
[386510426,1758327044272,-436.64,0.00019337,2]
[386510427,1758327044282,-400.0,0.00019337,2]
[386510428,1758327044292,-574.58,0.00019337,2]
[386510429,1758327044302,-400.0,0.00019337,2]
[386510430,1758327044312,-400.0,0.00019337,2]
[386510431,1758327044323,-586.0,0.00019337,2]
[386510432,1758327044337,-479.48,0.00019337,2]
[386510433,1758327044347,-500.0,0.00019337,2]
[386510434,1758327044357,-528.44,0.00019337,2]
[386510435,1758327044367,-724.36,0.00019337,2]
[386510436,1758327044379,-442.5,0.00019337,2]
[386510437,1758327044389,-492.41,0.00019337,2]
[386510438,1758327044399,-400.0,0.00019337,2]
[386510439,1758327044411,-400.0,0.00019337,2]
[386510440,1758327044421,-400.0,0.00019337,2]
[386510441,1758327044430,-400.0,0.00019337,2]
[386510442,1758327044440,-787.35,0.00019337,2]
[386510443,1758327044450,-400.0,0.00019337,2]
[386510444,1758327044459,-533.39,0.00019337,2]
[386510445,1758327044469,-966.48,0.00019337,2]
[386510446,1758327044479,-400.0,0.00019337,2]
[386510447,1758327044488,-817.97,0.00019337,2]
[386510448,1758327044499,-400.0,0.00019337,2]
[386510449,1758327044724,-446.43,0.00019337,2]
[386510450,1758327044749,-1502.7,0.00019337,2]
[386510451,1758327044761,-400.0,0.00019337,2]
[386510452,1758327044771,-3504.66,0.00019337,2]
[386510453,1758327044781,-573.84,0.00019337,2]
[386510454,1758327044792,-400.0,0.00019337,2]
[386510455,1758327044802,-495.62,0.00019337,2]
[386510456,1758327044813,-441.0,0.00019337,2]
[386510457,1758327044823,-944.64,0.00019337,2]
[386510458,1758327044832,-441.64,0.00019337,2]
[386510459,1758327044843,-656.25,0.00019337,2]
[386510460,1758327044854,-425.7,0.00019337,2]
[386510461,1758327044865,-621.58,0.00019337,2]
[386510462,1758327044876,-777.84,0.00019337,2]
[386510463,1758327044887,-400.0,0.00019337,2]
[386510464,1758327044898,-729.45,0.00019337,2]
[386510465,1758327044909,-400.0,0.00019337,2]
[386510466,1758327044921,-400.0,0.00019337,2]
[386510467,1758327044931,-661.05,0.00019337,2]
[386510468,1758327044943,-556.71,0.00019337,2]
[386510469,1758327044956,-544.42,0.00019337,2]
[386510470,1758327044969,-400.0,0.00019337,2]
[386510471,1758327044980,-400.0,0.00019337,2]
[386510472,1758327044990,-760.38,0.00019337,2]
[386510473,1758327045000,-477.4,0.00019337,2]
[386510474,1758327045010,-473.09,0.00019337,2]
[386510475,1758327045019,-530.73,0.00019337,2]
[386510476,1758327045030,-407.95,0.00019337,2]
[386510477,1758327045042,-578.09,0.00019337,2]
[386510478,1758327045052,-625.03,0.00019337,2]
[386510479,1758327045062,-523.36,0.00019337,2]
[386510480,1758327045073,-446.6,0.00019337,2]
[386510481,1758327045084,-677.01,0.00019337,2]
[386510482,1758327045095,-582.97,0.00019337,2]
[386510483,1758327045106,-407.9,0.00019337,2]
[386510484,1758327045118,-502.33,0.00019337,2]
[386510485,1758327045129,-400.0,0.00019337,2]
[386510486,1758327045139,-546.4,0.00019337,2]
[386510487,1758327045151,-463.1,0.00019337,2]
[386510488,1758327045161,-400.0,0.00019337,2]
[386510489,1758327045171,-794.0,0.00019337,2]
[386510490,1758327045183,-565.04,0.00019337,2]
[386510491,1758327045194,-587.27,0.00019337,2]
[386510492,1758327045204,-627.75,0.00019337,2]
[386510493,1758327045215,-616.73,0.00019337,2]
[386510494,1758327045226,-596.64,0.00019337,2]
[386510495,1758327045237,-793.34,0.00019337,2]
[386510496,1758327045248,-697.95,0.00019337,2]
[386510497,1758327045258,-567.86,0.00019337,2]
[386510498,1758327045268,-753.29,0.00019337,2]
[386510499,1758327045277,-705.01,0.00019337,2]
[386510500,1758327045288,-603.52,0.00019337,2]
[386510501,1758327045299,-2010.98,0.00019337,2]
[386510502,1758327045310,-1654.37,0.00019337,2]
[386510503,1758327045319,-462.43,0.00019337,2]
[386510504,1758327045331,-616.05,0.00019337,2]
[386510505,1758327045342,-445.17,0.00019337,2]
[386510506,1758327045352,-1000.0,0.00019337,2]
[386510507,1758327045362,-400.0,0.00019337,2]
[386510508,1758327045372,-3661.65,0.00019337,2]
[386510509,1758327045382,-568.57,0.00019337,2]
[386510510,1758327045391,-420.79,0.00019338,2]
[386510511,1758327045402,-718.53,0.00019338,2]
[386510512,1758327045412,-895.01,0.00019338,2]
[386510513,1758327045422,-934.35,0.00019338,2]
[386510514,1758327045432,-1081.88,0.00019338,2]
[386510515,1758327045442,-1114.43,0.00019338,2]
[386510516,1758327045452,-1550.46,0.00019338,2]
[386510517,1758327045462,-490.88,0.00019338,2]
[386510518,1758327045471,-608.98,0.00019338,2]
[386510519,1758327045481,-529.44,0.00019338,2]
[386510520,1758327045492,-1104.61,0.00019338,2]
[386510521,1758327045501,-400.0,0.00019338,2]
[386510522,1758327045511,-500.0,0.00019338,2]
[386510523,1758327045521,-458.25,0.00019338,2]
[386510524,1758327045531,-593.02,0.00019338,2]
[386510525,1758327045540,-550.53,0.00019338,2]
[386510526,1758327045550,-638.99,0.00019338,2]
[386510527,1758327045560,-1141.41260455,0.00019399,2]
[386510528,1758327045570,-803.73,0.000194,2]
[386510529,1758327045580,-104255.92645166,0.00019415,2]
[386510530,1758327045589,-383.01958374,0.00019415,2]
[386510531,1758327045599,-410.3,0.00019449,2]
[386510532,1758327045608,-383.01958374,0.00019496,2]
[386510533,1758327045618,-988.04,0.00019498,2]
[386510534,1758327045627,-784.88,0.00019498,2]
[386510535,1758327045638,-630.15,0.00019498,2]
[386510536,1758327045659,-2000.0,0.000195,2]
[386510537,1758327045670,-3894.7170907,0.000195,2]
[386510538,1758327045680,-150.0,0.000195,2]
[386510539,1758327045690,-500.0,0.0001951,2]
[386510540,1758327045700,-500.0,0.0001951,2]
[386510541,1758327045711,-191.126733,0.00019511,2]
[386510542,1758327045721,-296.985439,0.00019511,2]
[386510543,1758327045732,-314.082257,0.00019511,2]
[386510544,1758327045742,-400.0,0.00019511,2]
[386510545,1758327045752,-527.34059679,0.00019511,2]
[386510546,1758327045763,-400.0,0.00019511,2]
[386510547,1758327045774,-400.0,0.00019511,2]
[386510548,1758327045785,-422.44,0.00019511,2]
[386510549,1758327045797,-400.0,0.00019511,2]
[386510550,1758327045808,-428.32,0.00019511,2]
[386510551,1758327045818,-460.31,0.00019511,2]
[386510552,1758327045828,-400.0,0.00019511,2]
[386510553,1758327045839,-400.0,0.00019511,2]
[386510554,1758327045849,-400.0,0.00019511,2]
[386510555,1758327045861,-400.0,0.00019511,2]
[386510556,1758327045872,-443.16,0.00019511,2]
[386510557,1758327045884,-400.0,0.00019511,2]
[386510558,1758327045897,-400.0,0.00019511,2]
[386510559,1758327045909,-418.38,0.00019511,2]
[386510560,1758327045919,-433.55,0.00019511,2]
[386510561,1758327045929,-400.0,0.00019511,2]
[386510562,1758327045939,-400.0,0.00019511,2]
[386510563,1758327045949,-420.21,0.00019511,2]
[386510564,1758327045959,-400.0,0.00019511,2]
[386510565,1758327045969,-400.0,0.00019511,2]
[386510566,1758327045979,-400.0,0.00019511,2]
[386510567,1758327045989,-418.9,0.00019511,2]
[386510568,1758327045999,-400.0,0.00019511,2]
[386510569,1758327046009,-400.0,0.00019511,2]
[386510570,1758327046019,-400.0,0.00019511,2]
[386510571,1758327046029,-451.43,0.00019511,2]
[386510572,1758327046046,-400.0,0.00019511,2]
[386510573,1758327046056,-400.0,0.00019511,2]
[386510574,1758327046068,-400.0,0.00019511,2]
[386510575,1758327046079,-435.0,0.00019511,2]
[386510577,1758327046092,-400.0,0.00019511,2]
[386510579,1758327046104,-400.0,0.00019511,2]
[386510582,1758327046114,-400.0,0.00019511,2]
[386510583,1758327046127,-406.04,0.00019511,2]
[386510584,1758327046137,-400.0,0.00019511,2]
[386510585,1758327046148,-423.58,0.00019511,2]
[386510586,1758327046159,-400.0,0.00019511,2]
[386510587,1758327046171,-400.0,0.00019511,2]
[386510588,1758327046183,-400.0,0.00019511,2]
[386510589,1758327046193,-400.0,0.00019511,2]
[386510590,1758327046204,-400.0,0.00019511,2]
[386510591,1758327046215,-400.0,0.00019511,2]
[386510592,1758327046226,-400.0,0.00019511,2]
[386510593,1758327046236,-400.0,0.00019511,2]
[386510594,1758327046247,-400.0,0.00019511,2]
[386510595,1758327046258,-400.0,0.00019511,2]
[386510596,1758327046269,-401.56,0.00019511,2]
[386510597,1758327046280,-400.0,0.00019511,2]
[386510598,1758327046293,-400.0,0.00019511,2]
[386510599,1758327046304,-400.0,0.00019511,2]
[386510600,1758327046315,-400.0,0.00019511,2]
[386510601,1758327046328,-443.3,0.00019511,2]
[386510602,1758327046338,-400.0,0.00019511,2]
[386510603,1758327046348,-400.0,0.00019511,2]
[386510604,1758327046360,-400.0,0.00019511,2]
[386510605,1758327046370,-487.31,0.00019511,2]
[386510606,1758327046382,-545.93,0.00019511,2]
[386510607,1758327046393,-400.0,0.00019511,2]
[386510608,1758327046404,-331.53,0.00019511,2]
[386510609,1758327046414,-482.12,0.00019511,2]
[386510610,1758327046425,-400.0,0.00019511,2]
[386510611,1758327046439,-400.0,0.00019511,2]
[386510612,1758327046450,-433.67,0.00019511,2]
[386510613,1758327046461,-438.45,0.00019511,2]
[386510614,1758327046472,-484.81,0.00019511,2]
[386510615,1758327046482,-400.0,0.00019511,2]
[386510616,1758327046493,-447.78,0.00019511,2]
[386510617,1758327046503,-400.0,0.00019511,2]
[386510618,1758327046514,-400.0,0.00019511,2]
[386510619,1758327046525,-400.0,0.00019511,2]
[386510620,1758327046535,-400.0,0.00019511,2]
[386510621,1758327046545,-400.0,0.00019511,2]
[386510622,1758327046556,-503.2,0.00019511,2]
[386510623,1758327046567,-400.0,0.00019511,2]
[386510624,1758327046577,-400.0,0.00019511,2]
[386510625,1758327046588,-448.24,0.00019511,2]
[386510626,1758327046599,-400.0,0.00019511,2]
[386510627,1758327046611,-513.5,0.00019511,2]
[386510628,1758327046622,-400.0,0.00019511,2]
[386510629,1758327046632,-400.0,0.00019511,2]
[386510630,1758327046643,-400.0,0.00019511,2]
[386510631,1758327046653,-400.0,0.00019511,2]
[386510632,1758327046668,-400.0,0.00019511,2]
[386510633,1758327046679,-400.0,0.00019511,2]
[386510634,1758327046689,-400.0,0.00019511,2]
[386510635,1758327046699,-400.0,0.00019511,2]
[386510636,1758327046709,-400.0,0.00019511,2]
[386510637,1758327046719,-400.0,0.00019511,2]
[386510638,1758327046730,-400.0,0.00019511,2]
[386510639,1758327046740,-400.0,0.00019511,2]
[386510640,1758327046751,-400.0,0.00019511,2]
[386510641,1758327046762,-669.13,0.00019511,2]
[386510642,1758327046773,-400.0,0.00019511,2]
[386510643,1758327046783,-509.16,0.00019511,2]
[386510644,1758327046793,-400.0,0.00019511,2]
[386510645,1758327046804,-733.35,0.00019511,2]
[386510647,1758327046815,-400.0,0.00019511,2]
[386510649,1758327046826,-400.0,0.00019511,2]
[386510651,1758327046837,-514.02,0.00019511,2]
[386510653,1758327046848,-400.0,0.00019511,2]
[386510654,1758327046859,-400.0,0.00019511,2]
[386510655,1758327046870,-400.0,0.00019511,2]
[386510656,1758327046880,-533.64,0.00019511,2]
[386510657,1758327046891,-609.12,0.00019511,2]
[386510658,1758327046902,-680.8,0.00019511,2]
[386510659,1758327046912,-400.0,0.00019511,2]
[386510660,1758327046922,-440.44,0.00019511,2]
[386510661,1758327046932,-447.39,0.00019511,2]
[386510662,1758327046943,-742.82,0.00019511,2]
[386510663,1758327046953,-400.0,0.00019511,2]
[386510664,1758327046964,-814.03,0.00019511,2]
[386510665,1758327046975,-484.49,0.00019511,2]
[386510666,1758327046986,-687.32,0.00019511,2]
[386510667,1758327046997,-858.35,0.00019511,2]
[386510668,1758327047009,-741.09,0.00019511,2]
[386510669,1758327047020,-400.0,0.00019511,2]
[386510670,1758327047030,-476.52,0.00019511,2]
[386510671,1758327047040,-570.65,0.00019511,2]
[386510672,1758327047051,-400.0,0.00019511,2]
[386510673,1758327047062,-1678.84,0.00019511,2]
[386510674,1758327047072,-406.34,0.00019511,2]
[386510675,1758327047082,-400.0,0.00019511,2]
[386510676,1758327047092,-406.06,0.00019511,2]
[386510677,1758327047467,-655.03,0.00019511,2]
[386510678,1758327047492,-444.47,0.00019511,2]
[386510679,1758327047502,-522.47,0.00019511,2]
[386510680,1758327047511,-671.96,0.00019511,2]
[386510681,1758327047521,-1072.32,0.00019511,2]
[386510682,1758327047530,-673.64,0.00019511,2]
[386510683,1758327047540,-435.89,0.00019511,2]
[386510684,1758327047549,-400.0,0.00019511,2]
[386510685,1758327047559,-400.0,0.00019511,2]
[386510686,1758327047568,-400.0,0.00019511,2]
[386510687,1758327047577,-532.7,0.00019511,2]
[386510688,1758327047586,-400.0,0.00019511,2]
[386510689,1758327047597,-1474.37,0.00019511,2]
[386510690,1758327047608,-468.39,0.00019511,2]
[386510691,1758327047618,-400.0,0.00019511,2]
[386510692,1758327047629,-641.59,0.00019511,2]
[386510693,1758327047640,-577.44,0.00019511,2]
[386510694,1758327047651,-487.55,0.00019511,2]
[386510695,1758327047661,-400.0,0.00019511,2]
[386510696,1758327047671,-449.63,0.00019511,2]
[386510697,1758327047680,-804.9,0.00019511,2]
[386510698,1758327047690,-400.0,0.00019511,2]
[386510699,1758327047699,-735.44,0.00019511,2]
[386510700,1758327047709,-400.0,0.00019511,2]
[386510701,1758327047719,-618.59,0.00019511,2]
[386510702,1758327047728,-400.0,0.00019511,2]
[386510703,1758327047739,-454.89,0.00019511,2]
[386510704,1758327047749,-735.08,0.00019511,2]
[386510705,1758327047758,-400.0,0.00019511,2]
[386510706,1758327047768,-400.0,0.00019511,2]
[386510707,1758327047778,-400.0,0.00019511,2]
[386510708,1758327047788,-502.65,0.00019511,2]
[386510709,1758327047798,-400.0,0.00019511,2]
[386510710,1758327047807,-456.99,0.00019511,2]
[386510711,1758327047817,-680.73,0.00019511,2]
[386510712,1758327047827,-1470.59,0.00019511,2]
[386510713,1758327047838,-400.0,0.00019511,2]
[386510714,1758327047848,-400.0,0.00019511,2]
[386510715,1758327047858,-400.0,0.00019511,2]
[386510716,1758327047867,-596.11,0.00019511,2]
[386510717,1758327047880,-474.3,0.00019511,2]
[386510718,1758327047890,-416.75,0.00019511,2]
[386510719,1758327047899,-400.0,0.00019511,2]
[386510720,1758327047909,-676.14,0.00019511,2]
[386510721,1758327047918,-1569.26,0.00019511,2]
[386510722,1758327047928,-400.0,0.00019511,2]
[386510723,1758327047937,-2084.6,0.00019511,2]
[386510724,1758327047947,-563.62,0.00019511,2]
[386510725,1758327047956,-461.85,0.00019511,2]
[386510726,1758327047966,-413.99,0.00019511,2]
[386510727,1758327047976,-400.0,0.00019511,2]
[386510728,1758327047985,-591.4,0.00019511,2]
[386510729,1758327047996,-772.77,0.00019511,2]
[386510730,1758327048006,-1818.21,0.00019511,2]
[386510731,1758327048016,-414.55,0.00019511,2]
[386510732,1758327048026,-400.0,0.00019511,2]
[386510733,1758327048035,-2070.57,0.00019511,2]
[386510734,1758327048045,-553.61,0.00019511,2]
[386510735,1758327048056,-400.0,0.00019511,2]
[386510736,1758327048065,-400.0,0.00019511,2]
[386510737,1758327048075,-754.47,0.00019511,2]
[386510738,1758327048085,-1552.06,0.00019511,2]
[386510739,1758327048095,-431.5,0.00019511,2]
[386510740,1758327048105,-465.44,0.00019511,2]
[386510741,1758327048115,-714.42,0.00019511,2]
[386510742,1758327048124,-549.49,0.00019511,2]
[386510743,1758327048134,-400.0,0.00019511,2]
[386510744,1758327048144,-400.0,0.00019511,2]
[386510745,1758327048154,-400.0,0.00019511,2]
[386510746,1758327048163,-400.0,0.00019511,2]
[386510747,1758327048173,-547.42,0.00019511,2]
[386510748,1758327048184,-524.62,0.00019511,2]
[386510749,1758327048193,-1364.66,0.00019511,2]
[386510750,1758327048204,-491.16,0.00019511,2]
[386510751,1758327048213,-1167.26,0.00019511,2]
[386510752,1758327048223,-400.0,0.00019511,2]
[386510753,1758327048233,-987.82,0.00019511,2]
[386510754,1758327048243,-934.85,0.00019511,2]
[386510755,1758327048254,-901.46,0.00019511,2]
[386510756,1758327048263,-434.53,0.00019511,2]
[386510757,1758327048273,-400.0,0.00019511,2]
[386510758,1758327048283,-1397.4,0.00019511,2]
[386510759,1758327048293,-505.73,0.00019511,2]
[386510760,1758327048303,-742.03,0.00019511,2]
[386510761,1758327048313,-418.85,0.00019511,2]
[386510762,1758327048322,-400.0,0.00019511,2]
[386510763,1758327048336,-473.82,0.00019511,2]
[386510764,1758327048346,-400.0,0.00019511,2]
[386510765,1758327048356,-400.0,0.00019511,2]
[386510766,1758327048366,-400.0,0.00019511,2]
[386510767,1758327048376,-594.34,0.00019511,2]
[386510768,1758327048386,-516.84,0.00019511,2]
[386510769,1758327048396,-2048.12,0.00019511,2]
[386510770,1758327048405,-835.43,0.00019511,2]
[386510771,1758327048415,-521.84,0.00019511,2]
[386510772,1758327048425,-400.0,0.00019511,2]
[386510773,1758327048435,-2109.84,0.00019511,2]
[386510774,1758327048444,-400.0,0.00019511,2]